Workbook

Sheet LM(2)5118 Calculator
A1: LM(2)5118 Quick Start Component Calculator | E1: Version 2.01
A2: Revision date: April 2014
A6: Step 1 - Application Requirements
C7: Vout (V) | E7: 12
A8: Enter design requirements in the shaded cells | C8: Vin(min) (V) | E8: 5
C9: Vin(max) (V) | E9: 42
C10: Maximum Average Load Current Iout (A) | E10: 3
C11: Ripple Current as % of Maximum Load Current (%) | E11: 0.4
C12: Effciency of Converter (%) | E12: 0.8
C13: VCCX Voltage (V) | E13: 0
C14: Vin at start of Transition to Buck-Boost Mode (V) | E14: =1.33*Vout -> 15.96
C15: Buck-Boost Mode Operation | E15: =IF(Vinmin<1.4*Vout,"YES","NO") -> YES
C17: Recommended Controller IC | E17: =IF(E15 = "NO", "LM5116", "LM5118") -> LM5118
A19: Step 2 - Switching Frequency
C20: Maximum Possible Switching Frequency (kHz) | E20: =IF(Fmax<610,Fmax,500) -> 500
A21: =IF(E21>=E20,"Violation of Minimum On-Time or Max Frequency","") ->  | C21: Switching Frequency (kHz) | E21: 300
A22: =IF(E21>=E20,"Reduce Switching Frequency","") ->  | C22: Timing Resistor, Rt (kW) | E22: =6.4*10^3/Fsw-3.02 -> 18.31333333
A23: =IF(Dviolate<DMaximumAll,"Check Switching Frequency or Decrease Vin","") -> 
A24: Step 3 - Inductor Value
C25: Calculated Buck Mode Inductor Value, Lb (µH) | E25: =IF(Vinmax>E14,((Vout*(Vinmax-Vout))/(Vinmax*Fsw*(Ripple*Iout)))*1000,"NA") -> 23.80952381
C26: Calculated Buck-Boost Mode Inductor Value, Lb-b (µH) | E26: =IF(BuckBoostMode="YES",(((Vinmin)*Vout)/((Vinmin+Vout)*Fsw*Ripple*Iout))*1000,"NA") -> 9.803921569
C27: Actual Chosen Inductor Value, L (µH) | E27: 10
C28: Inductor Tolerance (%) | E28: 0.1
A30: Step 4 - Calculate Output and Inductor Currents Based on Chosen Inductor
C31: Buck mode Ripple Current at Vin(max), ΔI (A) | E31: =IF(Vinmax>E14,((Vout*(Vinmax-Vout))/(Vinmax*L*Fsw))*1000,"NA") -> 2.857142857
C32: Buck-Boost Ripple Current at Vin(min), ΔI (A) | E32: =(Vout*Vinmin)/(Fsw*L*(Vout+Vinmin))*1000 -> 1.176470588
C33: Buck-Boost Ripple Current at Vin=Vout, ΔI (A) | E33: =IF(Vinmax>=Vout,(Vout*Vout)/((Vout+Vout)*Fsw*L)*1000,"NA") -> 2
C34: Buck mode Ripple Current at Vin(max), Including inductor tolerance, ΔI (A) | E34: =IrippleBuck/(1-L_tol) -> 3.174603175
C35: Buck-Boost Ripple Current at Vin(min), Including inductor tolerance, ΔI (A) | E35: =IrippleBB/(1-L_tol) -> 1.307189542
C36: Buck Average Inductor Current at Vin(max), Including Effciency (A) | E36: =Iout/Eff -> 3.75
C37: Buck-Boost Average Inductor Current at Vin(min), Including Effciency (A) | E37: =((Vout+Vinmin)/Vinmin)*(Iout/Eff) -> 12.75
C38: Buck-Mode Peak Inductor Current, Ip(b) (A) | E38: =IF(Vinmax>E14,ILavgBuck+E34/2,"NA") -> 5.337301587
C39: Buck-Boost Mode Peak Inductor Current, Ip(b-b) (A) | E39: =IF(BuckBoostMode="YES",ILavgBB+E35/2,"NA") -> 13.40359477
A41: Step 5 - Sense Resistor
C42: Current Limit Margin (% beyond Max Load) (%) | E42: 0.2
C43: Buck Mode K Factor (K) | E43: =1+(10/(Vinmax-Vout)) -> 1.333333333
C44: Selected Buck Mode K Factor (K) | E44: 1.16
C45: Buck-Boost Mode K Factor (K) | E45: =1+(10/Vinmin) -> 3
C46: Selected Buck-Boost Mode K Factor (K) | E46: 3
C47: Current Sense Resistor, Rs (mW) | E47: =IF((2.5*(1-E42))/(10*(ILavgBB+(IrippleBB*KBB)/2))*1000<(1.25*(1-E42))/(10*(ILavgBuck+(IrippleBuck*KBuck)/2))*1000,(2.5*(1-E42))/(10*(ILavgBB+(IrippleBB*KBB)/2))*1000,(1.25*(1-E42))/(10*(ILavgBuck+(IrippleBuck*KBuck)/2))*1000) -> 13.77912867
C48: Closest Standard Value, Rs (mW) | E48: 15
A50: Step 6 - Ramp Capacitor
C51: Cramp (pF) | E51: =(L*5*10^-6)/(10*Rs)*10^9 -> 333.3333333
C52: Closest Smaller Standard Value, Cramp (pF) | E52: 330
C53: Rramp (kW) | E53: =IF(Vout>20,7/(Vout*5*10^-6-50*10^-6)*10^-3,"NA") -> NA
A55: Step 7 - Current Limits
C56: Buck Mode Peak Inductor Current Limit (A) | E56: =IF(ILPeakLimitBuck<IpeakBuck,"Error",ILPeakLimitBuck) -> 7.371332371
C57: Buck-Boost Mode Peak Inductor Current Limit (A) | E57: =IF(ILPeakLimitBB<IpeakBB,"Error",ILPeakLimitBB) -> 14.28995841
A59: Step 9 - Output Capacitors (Based on Worst Case Conditions for Each Mode)
C60: Target output ripple (mV) | E60: 50
C61: Buck-Boost Duty cycle at Vin(min) (%) | E61: =Vout/(Vinmin+Vout) -> 0.7058823529
C62: Buck-Boost RMS Ripple Current in Output Cap (A) | E62: =SQRT(-(DBB*Iout^2)/(DBB-1)) -> 4.647580015
C63: Minimum COUT output Capacitor Value (µF) | E63: =Iout*Vout/(Vinmin+Vout)/(Fsw*DeltaVout)*1000000 -> 141.1764706
C64: Required COUT ESR (mW) | E64: =DeltaVout/(Iout/(1-E61)+IrippleBB/2) -> 4.634678299
C65: Chosen COUT output capacitor value (µF) | E65: =(47+280+0.47)*2 -> 654.94
C66: Actual COUT ESR (mW) | E66: 4.6
C67: Buck Mode Output Ripple Voltage (mV) | E67: =IF(Vinmax<BuckMode,"NA",Coutesr*((Iout/(1-E61)+(IrippleBB/2)))) -> 49.62588235
A69: Step 10 - Input Capacitors (Based on Worst Case Conditions for Each Mode)
C70: Buck-Boost RMS Input Ripple Current (A) | E70: =(Iout/(1-DBB))*SQRT(DBB*(1-DBB)) -> 4.647580015
C71: Buck-Boost Mode Peak to Peak Current Ripple in Input Cap (A) | E71: =IpeakBB -> 13.40359477
C72: Buck Mode RMS input Ripple Current (A) | E72: =IF(Vinmax<BuckMode,"NA",Iout*0.5) -> 1.5
C73: Buck Mode Peak to Peak Current Ripple in Input Cap (A) | E73: =IpeakBuck -> 5.337301587
C74: Initial Input Capacitor Value(μF) | E74: =E39/2/Fsw*1000 -> 22.33932462
C75: Chosen CIN Input Capacitor Value (µF) | E75: =2.2*5 -> 11
A77: Step 11 - Feedback Resistors
C78: Rfb2 (W) | E78: 2670
C79: Rfb1 (W) | E79: =_Rfb2/((Vout/1.23)-1) -> 304.9303621
A81: Step 12 - Chb & Cvcc Capacitor
C82: High-side MOSFET Qg at VGS=10V (nC) | E82: 30
C83: Minimum Bootstrap Capacitor Chb (µF) | E83: =E82*10^-3/(0.05*7) -> 0.08571428571
C84: Chosen Value for Chb (µF) | E84: 0.1
C85: Minimum VCC Bypass Capacitor Cvcc (µF) | E85: =10*E84 -> 1
A87: Step 13 - Error Amplifier Compensation
C88: Right Half Plane Zero Frequency (kHz) | E88: =((Rout*(1-DBB)^2)/(2*PI()*L*DBB*10^-6))/1000 -> 7.801712897
C89: Capacitor ESR Zero Frequency (kHz) | E89: =1/(Cout*Coutesr*2*PI()*10^-6) -> 52.82758829
C90: Capacitor Pole Frequency (kHz) | E90: =(1+DBB)/(2*PI()*Cout*Rout*10^-3) -> 0.1036352982
C91: Bandwidth (kHz) | E91: =fmodRzero/4 -> 1.950428224
C92: Selected Bandwith (kHz) | E92: 1.95
C93: Target Compensation Zero (kHz) | E93: =fcutoff/10 -> 0.195
C94: Target Compensation Pole (kHz) | E94: =fmodRzero -> 7.801712897
C95: Cpole (nF) | E95: =fcompZero/(fcompPole*_Rfb2*CompGain)*10^9 -> 1.87584453
C96: Select Nearest Standard Cpole Value (nF) | E96: 22
C97: Czero (nF) | E97: =((1/(CompGain*_Rfb2))-E95*10^-9)*10^9 -> 73.17441426
C98: Select Nearest Standard Czero Value (nF) | E98: 100
C99: Rcomp (W) | E99: =1/(fcompZero*2*3.14*E97*10^-9) -> 11159.54506
C100: Select nearest Standard Rcomp Value (W) | E100: 10000
A102: Step 14 - Soft Start capacitor
C103: Choose soft-start time (ms) | E103: 12.3
C104: Soft Start Capacitor Value (nF) | E104: =(E103*10^(-5))/1.23*10^6 -> 100
A106: Step 15 - UVLO Threshold and Hiccup Mode Restart
C107: Minimum Value of Resistor Ruv1 (kW) | E107: =Vinmax -> 42
C108: Chosen Value of Ruv1 (kW) | E108: 75
C109: Desired Undervoltage Threshold (V) | E109: 4
C110: Ruv2 Value (kW) | E110: =1.23*E108/(E109+5*E108*10^(-3)-1.23) -> 29.33227345
C111: Choose off-time of hiccup duty cycle (µs) | E111: 723
C112: Vin voltage for desired hiccup mode off-time (V) | E112: 12
C113: Hiccup Mode Off-time Capacitor Value Cr (nF) | E113: =-(E111*(E110+E108))/(E110*E108*LN(1-((0.98*(E110+E108))/(E110*E112)))) -> 99.91786343

Sheet Bill of Materials
B1: LM5118 List of Components
B3: Component | C3: Description | D3: Value | E3: Minimum Rating
B4: L | C4: Inductor | D4: =L -> 10 | E4: =ILPeakLimitBB -> 14.28995841
B5: Cin | C5: Input capacitor | D5: =Cin -> 11 | E5: =Vinmax -> 42
B6: Cramp | C6: Ramp capacitor | D6: =Cramp -> 330 | E6: 16
B7: Css | C7: Soft start capacitor | D7: =Css -> 100 | E7: 6
B8: Cout | C8: Output capacitor | D8: =Cout -> 654.94 | E8: =Vout -> 12
B9: Cr | C9: UVLO filter capacitor | D9: =Cr -> 99.91786343 | E9: 16
B10: Cpole | C10: Compensation capacitor | D10: =Cpole -> 22 | E10: 6
B11: Czero | C11: Compensation capacitor | D11: =Czero -> 100 | E11: 6
B12: Cvcc | C12: VCC bypass capacitor | D12: =Cvcc -> 1 | E12: 12
B13: Chb | C13: HB-SW bypass capacitor | D13: =Chb -> 0.1 | E13: =MAX(Vccx,VCC) -> 7
B14: Rfb1 | C14: Feedback resistor | D14: =_Rfb1 -> 304.9303621 | E14: 1/16 W
B15: Rfb2 | C15: Feedback resistor | D15: =_Rfb2 -> 2670 | E15: 1/16 W
B16: Ruv1 | C16: UVLO divider resistor | D16: =_Ruv1 -> 75 | E16: =IF(AND(Vinmax^2/(_Ruv2*1000)<0.05,Vinmax<=50),"1/16W","1/8W") -> 1/8W
B17: Ruv2 | C17: UVLO divider resistor | D17: =_Ruv2 -> 29.33227345 | E17: 1/16 W
B18: Rs | C18: Sense resistor | D18: =Rs -> 15 | E18: =IF(PRS_BB>PRS_B,PRS_BB,PRS_B) -> 2.4384375
B19: Rt | C19: Oscillator timing resistor | D19: =Rt -> 18.31333333 | E19: 1/16 W
B20: Rramp | C20: Optional ramp resistor | D20: =Rramp -> NA | E20: =IF(D20="NA","-","1/16 W") -> -
B21: Rcomp | C21: Compensation resistor | D21: =Rcomp/1000 -> 10 | E21: 1/16 W

Sheet Bode Plots
A1: Buck-Boost Mode | M1: Buck Mode
B2: Frequency (Hz) | C2: Frequency (rad/sec) | D2: Modulator Gain (dB) | E2: Modulator Phase (deg) | F2: Error Amplifier Gain (dB) | G2: Error Amplifier Phase (deg) | H2: Overall Loop Gain (dB) | I2: Loop Phase (deg) | N2: Frequency (Hz) | O2: Frequency (rad/sec) | P2: Modulator Gain (dB) | Q2: Modulator Phase (deg) | R2: Error Amplifier Gain (dB) | S2: Error Amplifier Phase (deg) | T2: Overall Loop Gain (dB) | U2: Loop Phase (deg)
B3: 0.1 | C3: =2*PI()*B3 -> 0.6283185307 | D3: =20*LOG(AmBB*IMABS(IMDIV(IMPRODUCT(COMPLEX(1,-C3/wrBB),COMPLEX(1,C3/wzBB)),COMPLEX(1,C3/wpBB)))) -> 13.25081073 | E3: =IMARGUMENT(IMDIV(IMPRODUCT(COMPLEX(1,-C3/wrBB),COMPLEX(1,C3/wzBB)),COMPLEX(1,C3/wpBB)))*(180/PI()) -> -0.05591189443 | F3: =20*LOG(Afb*IMABS(IMDIV(IMDIV(COMPLEX(1,C3/wzea),COMPLEX(1,C3/wpea)),COMPLEX(0,C3)))) -> 73.77898245 | G3: =IMARGUMENT(IMDIV(IMDIV(COMPLEX(-1,-C3/wzea),COMPLEX(1,C3/wpea)),COMPLEX(0,C3)))*(180/PI()) -> 90.02950819 | H3: =D3+F3 -> 87.02979318 | I3: =E3+G3 -> 89.9735963 | K3: Modulator - Buck-Boost | N3: 0.1 | O3: =2*PI()*N3 -> 0.6283185307 | P3: =20*LOG(Amb*IMABS(IMDIV(COMPLEX(1,O3/wzb),COMPLEX(1,O3/wpb)))) -> 28.51936288 | Q3: =IMARGUMENT(IMDIV(COMPLEX(1,O3/wzb),COMPLEX(1,O3/wpb)))*(180/PI()) -> -0.09420281676 | R3: =20*LOG(Afb*IMABS(IMDIV(IMDIV(COMPLEX(1,O3/wzea),COMPLEX(1,O3/wpea)),COMPLEX(0,O3)))) -> 73.77898245 | S3: =IMARGUMENT(IMDIV(IMDIV(COMPLEX(-1,-O3/wzea),COMPLEX(1,O3/wpea)),COMPLEX(0,O3)))*(180/PI()) -> 90.02950819 | T3: =P3+R3 -> 102.2983453 | U3: =Q3+S3 -> 89.93530538 | W3: Modulator - Buck
B4: 0.2 | C4: =2*PI()*B4 -> 1.256637061 | D4: 13.2507986 | E4: -0.1118236859 | F4: 67.75838751 | G4: 90.05901636 | H4: 81.00918612 | I4: 89.94719267 | K4: rad/sec | L4: Hz | N4: 0.2 | O4: =2*PI()*N4 -> 1.256637061 | P4: 28.51932758 | Q4: -0.1884051225 | R4: 67.75838751 | S4: 90.05901636 | T4: =P4+R4 -> 96.27771509 | U4: =Q4+S4 -> 89.87061123 | W4: rad/sec | X4: Hz
B5: 0.5 | C5: =2*PI()*B5 -> 3.141592654 | D5: 13.2507137 | E5: -0.2795574132 | F5: 59.79962217 | G5: 90.14754039 | H5: 73.05033588 | I5: 89.86798298 | J5: wp | K5: =(1+DBB)/(Cout*10^-6*Rout) -> 651.1597829 | L5: =K5/(2*PI()) -> 103.6352982 | N5: 0.5 | O5: =2*PI()*N5 -> 3.141592654 | P5: 28.51908048 | Q5: -0.4710038629 | R5: 59.79962217 | S5: 90.14754039 | T5: 88.31870265 | U5: 89.67653653 | V5: wz | W5: =1/(Cout*10^-6*Coutesr*10^-3) -> 331925.5265 | X5: =W5/(2*PI()) -> 52827.58829
B6: 1 | C6: =2*PI()*B6 -> 6.283185307 | D6: 13.25041051 | E6: -0.5591019584 | F6: 53.77914667 | G6: 90.29507726 | H6: 67.02955717 | I6: 89.7359753 | J6: wr | K6: =(Rout*(1-DBB)^2)/(L*10^-6*DBB) -> 49019.60784 | L6: =K6/(2*PI()) -> 7801.712897 | N6: 1 | O6: =2*PI()*N6 -> 6.283185307 | P6: 28.5181981 | Q6: -0.9419438556 | R6: 53.77914667 | S6: 90.29507726 | T6: 82.29734477 | U6: 89.3531334 | V6: wp | W6: =1/(Cout*10^-6*Rout) -> 381.7143555 | X6: =W6/(2*PI()) -> 60.75172653
B7: 2 | C7: =2*PI()*B7 -> 12.56637061 | D7: 13.24919792 | E7: -1.118100994 | F7: 47.75904433 | G7: 90.59012626 | H7: 61.00824226 | I7: 89.47202527 | J7: wz | K7: =1/(Cout*10^-6*Coutesr*10^-3) -> 331925.5265 | L7: =K7/(2*PI()) -> 52827.58829 | N7: 2 | O7: =2*PI()*N7 -> 12.56637061 | P7: 28.51467039 | Q7: -1.883377061 | R7: 47.75904433 | S7: 90.59012626 | T7: 76.27371472 | U7: 88.7067492 | W7: Gain | X7: dB
B8: 5 | C8: 31.41592654 | D8: 13.24071933 | E8: -2.793453758 | F8: 39.80372553 | G8: 91.47482148 | H8: 53.04444485 | I8: 88.68136772 | K8: Gain | L8: dB | N8: 5 | O8: 31.41592654 | P8: 28.49005628 | Q8: -4.699540958 | R8: 39.80372553 | S8: 91.47482148 | T8: 68.29378181 | U8: 86.77528052 | V8: Am | W8: =Rout/Ri -> 26.66666667 | X8: =20*LOG(Amb) -> 28.51937465
B9: 10 | C9: 62.83185307 | D9: 13.21057308 | E9: -5.574127882 | F9: 33.7955348 | G9: 92.94612123 | H9: 47.00610788 | I9: 87.37199335 | J9: Am | K9: =(Rout/Ri)*((1-DBB)/(1+DBB)) -> 4.597701149 | L9: =20*LOG(K9) -> 13.25081477 | N9: 10 | O9: 62.83185307 | P9: 28.40327034 | Q9: -9.336471039 | R9: 33.7955348 | S9: 92.94612123 | T9: 62.19880514 | U9: 83.60965019
B10: 20 | C10: 125.6637061 | D10: 13.09203884 | E10: -11.04810238 | F10: 27.8241965 | G10: 95.86431732 | H10: 40.91623533 | I10: 84.81621494 | N10: 20 | O10: 125.6637061 | P10: 28.07249472 | Q10: -18.20030564 | R10: 27.8241965 | S10: 95.86431732 | T10: 55.89669122 | U10: 77.66401169
B11: 50 | C11: 314.1592654 | D11: 12.342181 | E11: -26.06846724 | F11: 20.19444033 | G11: 104.1981587 | H11: 32.53662134 | I11: 78.12969141 | K11: Error Amp | N11: 50 | O11: 314.1592654 | P11: 26.27310274 | Q11: -39.40089867 | R11: 20.19444033 | S11: 104.1981587 | T11: 46.46754308 | U11: 64.79725999 | W11: Error Amp
B12: 100 | C12: 628.3185307 | D12: 10.39355271 | E12: -44.60316599 | F12: 15.16865255 | G12: 115.6776721 | H12: 25.56220526 | I12: 71.07450616 | K12: rad/sec | L12: Hz | N12: 100 | O12: 628.3185307 | P12: 22.82628324 | Q12: -58.61213881 | R12: 15.16865255 | S12: 115.6776721 | T12: 37.99493579 | U12: 57.06553333 | W12: rad/sec | X12: Hz
B13: 200 | C13: 1256.637061 | D13: 6.51035601 | E13: -63.85943435 | F13: 11.65564888 | G13: 128.7201391 | H13: 18.16600489 | I13: 64.86070473 | J13: wpea | K13: =(Czero*10^-9+Cpole*10^-9)/(Cpole*10^-9*Czero*10^-9*Rcomp) -> 5545.454545 | L13: =wpea/(2*PI()) -> 882.5865026 | N13: 200 | O13: 1256.637061 | P13: 17.78671218 | Q13: -72.88647335 | R13: 11.65564888 | S13: 128.7201391 | T13: 29.44236105 | U13: 55.83366573 | V13: wpea | W13: =(Czero*10^-9+Cpole*10^-9)/(Cpole*10^-9*Czero*10^-9*Rcomp) -> 5545.454545 | X13: =wpea/(2*PI()) -> 882.5865026
B14: 500 | C14: 3141.592654 | D14: -0.582921967 | E14: -81.41479175 | F14: 8.952883292 | G14: 132.8109346 | H14: 8.369961325 | I14: 51.39614288 | J14: wzea | K14: =1/(Czero*10^-9*Rcomp) -> 1000 | L14: =wzea/(2*PI()) -> 159.1549431 | N14: 500 | O14: 3141.592654 | P14: 10.14788947 | Q14: -82.53004894 | R14: 8.952883292 | S14: 132.8109346 | T14: 19.10077276 | U14: 50.28088569 | V14: wzea | W14: =1/(Czero*10^-9*Rcomp) -> 1000 | X14: =wzea/(2*PI()) -> 159.1549431
B15: 1000 | C15: 6283.185307 | D15: -6.41309908 | E15: -90.30297868 | F15: 6.264702458 | G15: 122.3881278 | H15: -0.1483966221 | I15: 32.08514916 | K15: Gain | L15: dB | N15: 1000 | O15: 6283.185307 | P15: 4.17610374 | Q15: -85.43900419 | R15: 6.264702458 | S15: 122.3881278 | T15: 10.4408062 | U15: 36.94912365 | W15: Gain | X15: dB
B16: 2000 | C16: 12566.37061 | D16: -12.18863591 | E16: -99.2439626 | F16: 1.891806108 | G16: 109.2616789 | H16: -10.2968298 | I16: 10.01771627 | J16: Afb | K16: =1/(_Rfb2*(Czero*10^-9+Cpole*10^-9)) -> 3069.933075 | L16: =20*LOG(K16) -> 69.74257816 | N16: 2000 | O16: 12566.37061 | P16: -1.827837823 | Q16: -86.09200041 | R16: 1.891806108 | S16: 109.2616789 | T16: 0.06396828503 | U16: 23.16967846 | V16: Afb | W16: =1/(_Rfb2*(Czero*10^-9+Cpole*10^-9)) -> 3069.933075 | X16: =20*LOG(W16) -> 69.74257816
B17: 5000 | C17: 31415.92654 | D17: -18.88711546 | E17: -116.0609974 | F17: -5.450531862 | G17: 98.18740965 | H17: -24.33764733 | I17: -17.87358778 | N17: 5000 | O17: 31415.92654 | P17: -9.750762513 | Q17: -83.89707413 | R17: -5.450531862 | S17: 98.18740965 | T17: -15.20129437 | U17: 14.29033551
B18: 10000 | C18: 62831.85307 | D18: -22.06573893 | E18: -130.7269249 | F18: -11.37487495 | G18: 94.13196527 | H18: -33.44061388 | I18: -36.59495959 | N18: 10000 | O18: 62831.85307 | P18: -15.65671735 | Q18: -78.93294485 | R18: -11.37487495 | S18: 94.13196527 | T18: -27.0315923 | U18: 15.19902042
B19: 20000 | C19: 125663.7061 | D19: -23.08607584 | E19: -137.6568989 | F19: -17.37105033 | G19: 92.07084901 | H19: -40.45712617 | I19: -45.58604984 | N19: 20000 | O19: 125663.7061 | P19: -21.24837519 | Q19: -69.08979187 | R19: -17.37105033 | S19: 92.07084901 | T19: -38.61942552 | U19: 22.98105715
B20: 50000 | C20: 314159.2654 | D20: -21.40041939 | E20: -127.5877927 | F20: -25.32298527 | G20: 90.8288871 | H20: -46.72340466 | I20: -36.75890559 | N20: 50000 | O20: 314159.2654 | P20: -27.01089929 | Q20: -46.50552574 | R20: -25.32298527 | S20: 90.8288871 | T20: -52.33388456 | U20: 44.32336136
B21: 100000 | C21: 628318.5307 | D21: -17.64473539 | E21: -113.3260189 | F21: -31.34260349 | G21: 90.4144827 | H21: -48.98733888 | I21: -22.91153616 | N21: 100000 | O21: 628318.5307 | P21: -29.19770866 | Q21: -27.81160526 | R21: -31.34260349 | S21: 90.4144827 | T21: -60.54031215 | U21: 62.60287744
B22: 200000 | C22: 1256637.061 | D22: -12.41994444 | E22: -102.5324831 | F22: -37.36295795 | G22: 90.20724624 | H22: -49.78290239 | I22: -12.32523682 | N22: 200000 | O22: 1256637.061 | P22: -29.97376946 | Q22: -14.77866179 | R22: -37.36295795 | S22: 90.20724624 | T22: -67.33672741 | U22: 75.42858446
B23: 500000 | C23: 3141592.654 | D23: -4.71137727 | E23: -95.12540629 | F23: -45.32168939 | G23: 90.08289905 | H23: -50.03306666 | I23: -5.042507241 | N23: 500000 | O23: 3141592.654 | P23: -30.21845684 | Q23: -6.024258282 | R23: -45.32168939 | S23: 90.08289905 | T23: -75.54014623 | U23: 84.05864076
B24: 1000000 | C24: 6283185.307 | D24: 1.272321324 | E24: -92.57105285 | F24: -51.34227948 | G24: 90.04144956 | H24: -50.06995816 | I24: -2.529603293 | N24: 1000000 | O24: 6283185.307 | P24: -30.25456535 | Q24: -3.020506056 | R24: -51.34227948 | S24: 90.04144956 | T24: -81.59684484 | U24: 87.02094351

Sheet Worksheet (hidden)
E2: 10 is buck | F2: 10 is buck-boost
B4: =IF(Vout>0.7*Vin_nominal,"Buck-Boost Mode","Buck Mode") ->  | D4: Vin | E4: Vout
E5: 12
D6: 20 | E6: =IF(E5<0.7*D6,10,0) -> 10 | F6: =IF(E5>0.7*D6,10,0) -> 0
D7: 19 | E7: =IF(E5<0.7*D7,10,0) -> 10 | F7: =IF(E5>0.7*D7,10,0) -> 0
D8: 18 | E8: =IF(E5<0.7*D8,10,0) -> 10 | F8: =IF(E5>0.7*D8,10,0) -> 0
D9: 17 | E9: =IF(E5<0.7*D9,10,0) -> 0 | F9: =IF(E5>0.7*D9,10,0) -> 10
D10: 16 | E10: =IF(E5<0.7*D10,10,0) -> 0 | F10: =IF(E5>0.7*D10,10,0) -> 10
D11: 14 | E11: =IF(E7<0.7*D11,10,0) -> 0 | F11: =IF(E5>0.7*D11,10,0) -> 10
D12: 13 | E12: =IF(E8<0.7*D12,10,0) -> 0 | F12: =IF(E5>0.7*D12,10,0) -> 10
D13: 12 | E13: =IF(E5<0.7*D13,10,0) -> 0 | F13: =IF(E5>0.7*D13,10,0) -> 10
D14: 11 | E14: =IF(E5<0.7*D14,10,0) -> 0 | F14: =IF(E5>0.7*D14,10,0) -> 10
D15: 10 | E15: =IF(E5<0.7*D15,10,0) -> 0 | F15: =IF(E5>0.7*D15,10,0) -> 10
E17: 12
C18: 13 | D18: 75 | E18: =E17/0.7 -> 17.14285714 | F18: =E18 -> 17.14285714
C19: 13 | D19: 74 | E19: =E17/0.7 -> 17.14285714
C20: 13 | D20: 73 | E20: =E17/0.7 -> 17.14285714
C21: 13 | D21: 72 | E21: =E17/0.7 -> 17.14285714
C22: 13 | D22: 71 | E22: =E17/0.7 -> 17.14285714
C23: 13 | D23: 70 | E23: =E17/0.7 -> 17.14285714
C24: 13 | D24: =D23-1 -> 69 | E24: =E17/0.7 -> 17.14285714
C25: 13 | D25: 68 | E25: =E17/0.7 -> 17.14285714
C26: 13 | D26: 67 | E26: =E17/0.7 -> 17.14285714
C27: 13 | D27: 66 | E27: =E17/0.7 -> 17.14285714
C28: 13 | D28: 65 | E28: =E17/0.7 -> 17.14285714
C29: 13 | D29: 64 | E29: 17.14285714
C30: 13 | D30: 63 | E30: 17.14285714
C31: 13 | D31: 62 | E31: 17.14285714
C32: 13 | D32: 61 | E32: 17.14285714
C33: 13 | D33: 60 | E33: 17.14285714
C34: 13 | D34: =D33-1 -> 59 | E34: 17.14285714
C35: 13 | D35: 58 | E35: 17.14285714
C36: 13 | D36: 57 | E36: 17.14285714
C37: 13 | D37: 56 | E37: 17.14285714
C38: 13 | D38: 55 | E38: 17.14285714
C39: 13 | D39: 54 | E39: 17.14285714
C40: 13 | D40: 53 | E40: 17.14285714
C41: 13 | D41: 52 | E41: 17.14285714
C42: 13 | D42: 51 | E42: 17.14285714
C43: 13 | D43: 50 | E43: 17.14285714
C44: 13 | D44: 49 | E44: 17.14285714
C45: 13 | D45: 48 | E45: 17.14285714
C46: 13 | D46: 47 | E46: 17.14285714
C47: 13 | D47: 46 | E47: 17.14285714
C48: 13 | D48: 45 | E48: 17.14285714
C49: 13 | D49: 44 | E49: 17.14285714
C50: 13 | D50: 43 | E50: 17.14285714
C51: 13 | D51: 42 | E51: 17.14285714
C52: 13 | D52: 41 | E52: 17.14285714
C53: 13 | D53: 40 | E53: 17.14285714
C54: 13 | D54: 39 | E54: 17.14285714
C55: 13 | D55: 38 | E55: 17.14285714
C56: 13 | D56: 37 | E56: 17.14285714
C57: 13 | D57: 36 | E57: 17.14285714
C58: 13 | D58: 35 | E58: 17.14285714
C59: 13 | D59: 34 | E59: 17.14285714
C60: 13 | D60: 33 | E60: 17.14285714
C61: 13 | D61: 32 | E61: 17.14285714
C62: 13 | D62: 31 | E62: 17.14285714
C63: 13 | D63: 30 | E63: 17.14285714
C64: 13 | D64: 29 | E64: 17.14285714
C65: 13 | D65: 28 | E65: 17.14285714
C66: 13 | D66: 27 | E66: 17.14285714
C67: 13 | D67: 26 | E67: 17.14285714
C68: 13 | D68: 25 | E68: 17.14285714
C69: 13 | D69: 24 | E69: 17.14285714
C70: 13 | D70: 23 | E70: 17.14285714
C71: 13 | D71: 22 | E71: 17.14285714
C72: 13 | D72: 21 | E72: 17.14285714
C73: 13 | D73: 20 | E73: 17.14285714
C74: 13 | D74: 19 | E74: 17.14285714
C75: 13 | D75: 18 | E75: 17.14285714
C76: 13 | D76: 17 | E76: 17.14285714
C77: 13 | D77: 16 | E77: 17.14285714
C78: 13 | D78: 15 | E78: 17.14285714
C79: 13 | D79: 14 | E79: 17.14285714
C80: 13 | D80: 13 | E80: 17.14285714
C81: 13 | D81: 12 | E81: 17.14285714
C82: 13 | D82: 11 | E82: 17.14285714
C83: 13 | D83: 10 | E83: 17.14285714
C84: 13 | D84: 9 | E84: 17.14285714
C85: 13 | D85: 8 | E85: 17.14285714
C86: 13 | D86: 7 | E86: 17.14285714
C87: 13 | D87: 6 | E87: 17.14285714
C88: 13 | D88: 5 | E88: 17.14285714
C89: 13 | D89: 4 | E89: 17.14285714

Sheet Graph (hidden)
C4: Vinmin | D4: Vinmax | E4: Lower ts limit | F4: Upper ts limit | G4: Lo B-B Voltage | H4: Hi B-B voltage | I4: Lower Buck | J4: Upper Buck
C7: =Vinmin -> 5 | D7: =Vinmax -> 42 | E7: =1.15*Vout -> 13.8 | F7: =Vout/0.75 -> 16 | G7: =Vinmin -> 5 | H7: =E7 -> 13.8 | I7: =Vout/0.75 -> 16 | J7: =Vinmax -> 42 | L7: =Vout -> 12 | M7: =Vin_nominal -> 
C8: Buck-Boost | G8: 5 | H8: =IF(Vinmax<H7,Vinmax,H7) -> 13.8
C9: Graph-Trans | F9: =IF(Vinmax>F7,F7,IF(Vinmax>E7,Vinmax,0)) -> 16
C10: Offset-Trans | F10: =F9-H8 -> 2.2
B12: NEW | C12: Buck | H12: =IF(Vinmax>F7,Vinmax,0) -> 42
B13: Offset | C13: Offset-Buck | H13: =H12-F7 -> 26
